bitfinex/quotes_ETHUSD_20241130
["timestamp","ask_amount","ask_price","bid_price","bid_amount"]
[1732961794664,2.09549946,3683.6,3683.5,0.1570602]
[1732961795087,1.69027079,3683.6,3683.5,0.1570602]
[1732961795295,1.69006987,3683.6,3683.5,0.1570602]
[1732961795862,1.43678616,3683.6,3683.5,0.1570602]
[1732961796163,0.05828616,3683.6,3683.5,0.1570602]
[1732961796353,0.05828616,3683.6,3683.5,0.20359018]
[1732961798560,4.15151616,3683.6,3683.5,0.20359018]
[1732961798886,4.57006125,3683.6,3683.5,0.1570602]
[1732961799082,4.60400105,3683.6,3683.5,0.1570602]
[1732961799268,13.83710966,3683.6,3683.5,0.1570602]
[1732961799473,14.20813696,3683.6,3683.5,0.1570602]
[1732961800175,14.57360716,3683.6,3683.5,0.1570602]
[1732961800383,0.8285,3682.5,3681.7,2.06681007]
[1732961800578,0.8285,3682.5,3681.9,2.71593]
[1732961800905,0.8285,3682.5,3682.0,0.04682436]
[1732961801206,0.55,3682.4,3682.0,0.04682436]
[1732961801360,0.55,3682.4,3682.0,2.76268436]
[1732961801563,0.8285,3682.9,3682.1,2.71584]
[1732961801759,0.55,3682.8,3682.2,2.71575]
[1732961802012,0.55,3682.8,3682.1,4.8294248]
[1732961802186,0.55,3682.8,3682.3,0.04715541]
[1732961802388,0.35965966,3684.3,3682.2,2.71576]
[1732961802389,1.3785,3682.3,3682.2,0.04717504]
[1732961802587,1.3785,3682.3,3681.9,2.71592]
[1732961802901,1.3785,3682.3,3681.4,2.06681007]
[1732961802902,1.3785,3682.3,3681.7,2.71608]
[1732961803269,2.41435,3682.3,3681.4,2.06681007]
[1732961803470,5.13011,3682.3,3681.5,2.71621]
[1732961803683,5.13011,3682.3,3681.6,2.71618]
[1732961803882,2.41435,3682.3,3681.7,2.71612]
[1732961804205,0.8285,3682.1,3681.3,2.06681007]
[1732961804507,0.55,3682.0,3681.5,2.71627]
[1732961804863,0.55,3682.0,3681.3,2.06681007]
[1732961805104,0.55,3682.0,3681.5,2.71622]
[1732961805308,0.55,3682.0,3681.6,2.71616]
[1732961805705,0.55,3682.0,3681.7,2.71612]
[1732961806278,0.79726362,3682.0,3681.3,2.06681007]
[1732961806477,0.55,3682.0,3681.8,2.71605]
[1732961806792,0.8285,3682.1,3681.8,2.71602]
[1732961807024,0.8285,3682.1,3682.0,2.71591]
[1732961807337,0.8285,3682.1,3681.7,2.71613]
[1732961807539,0.8285,3682.1,3681.8,2.71605]
[1732961807707,0.8285,3682.1,3681.6,2.71619]
[1732961807901,0.8285,3682.1,3681.8,2.716]
[1732961808102,0.8285,3682.1,3681.6,2.71619]
[1732961808297,0.55,3682.0,3681.4,2.71635]
[1732961808714,0.96525662,3682.0,3681.4,2.71635]
[1732961809153,0.96525662,3682.0,3681.5,2.71627]
[1732961810342,0.96525662,3682.0,3681.6,2.71618]
[1732961810543,0.55,3682.0,3681.4,2.71635]
[1732961810716,0.55,3682.0,3681.8,2.71601]
[1732961810908,0.8285,3682.1,3681.3,2.06681007]
[1732961811101,0.05828616,3682.3,3680.6,2.71693]
[1732961811102,0.05828616,3682.3,3681.9,2.71598]
[1732961811318,0.831,3682.2,3680.2,0.08376688]
[1732961811501,0.831,3682.2,3682.0,0.04297085]
[1732961811731,3.54679,3682.2,3681.5,2.71622]
[1732961812246,3.54679,3682.2,3681.6,0.04167436]
[1732961812956,0.55,3682.1,3681.6,0.04167436]
[1732961813177,1.23706962,3682.1,3681.6,0.04167436]
[1732961813742,0.55,3681.9,3681.6,0.04167436]
[1732961813910,4.09713,3681.7,3681.6,0.04167436]
[1732961814111,0.831,3681.5,3680.8,2.7168]
[1732961814312,0.55,3681.4,3680.8,2.7168]
[1732961814529,0.55,3681.2,3680.9,0.04181184]
[1732961814729,0.55,3681.2,3681.1,2.71657]
[1732961814973,0.55,3681.2,3681.0,2.71662]
[1732961815155,0.831,3681.3,3681.1,0.04177256]
[1732961815833,0.831,3681.3,3681.2,0.04175291]
[1732961816257,2.3621,3681.3,3681.2,0.04175291]
[1732961816461,2.3621,3681.3,3681.0,2.71664]
[1732961816647,0.55,3681.2,3680.9,2.71672]
[1732961816862,0.55,3681.2,3681.0,0.0417922]
[1732961817529,0.55,3681.2,3681.0,2.7584222]
[1732961818049,1.8121,3681.3,3681.0,2.7584222]
[1732961818050,0.831,3681.3,3681.0,2.7584222]
[1732961818367,0.831,3681.3,3681.2,2.7165]
[1732961818368,0.55,3681.3,3681.2,2.7165]
[1732961818542,0.55,3681.5,3681.2,2.7165]
[1732961818732,0.55,3681.5,3681.2,2.75825291]
[1732961819068,0.55,3681.6,3681.2,0.04175291]
[1732961819230,0.55,3681.4,3681.2,0.04175291]
[1732961819575,0.71045416,3681.4,3681.2,0.04175291]
[1732961819736,0.71045416,3681.4,3681.2,2.75820291]
[1732961820067,0.55,3681.6,3681.2,0.04175291]
[1732961820564,0.55,3681.4,3681.2,0.04175291]
[1732961820769,3.26626,3681.6,3681.2,0.04175291]
[1732961820978,0.55,3681.4,3681.2,0.04175291]
[1732961821143,0.55,3681.4,3680.5,3.0]
[1732961821144,0.8028,3681.3,3680.7,2.71685]
[1732961821329,0.25196074,3681.2,3680.7,2.71685]
[1732961821529,0.25196074,3681.1,3680.7,2.71685]
[1732961821732,1.15810176,3681.3,3680.7,2.71685]
[1732961821972,0.25194396,3681.2,3680.7,2.71685]
[1732961822179,0.25194396,3681.1,3680.5,5.717]
[1732961822357,0.25194396,3681.0,3680.9,2.71672]
[1732961822681,0.25194396,3681.0,3680.2,0.08376688]
[1732961822682,0.8028,3680.7,3680.2,0.08376688]
[1732961822975,0.03396557,3680.6,3680.2,0.08376688]
[1732961823169,0.3642336,3681.5,3680.2,0.08376688]
[1732961823480,2.71666,3681.0,3680.2,0.08376688]
[1732961823635,0.25217193,3680.9,3680.6,2.71689]
[1732961823842,0.25218177,3680.8,3680.5,2.71698]
[1732961824037,2.71666,3681.0,3680.3,2.71716]
[1732961824349,0.8028,3680.8,3680.3,2.71715]
[1732961824551,0.25218014,3680.7,3680.3,2.71715]
[1732961824756,0.8028,3680.8,3680.3,2.71715]
[1732961824975,0.8028,3680.8,3680.2,0.08376688]
[1732961825160,0.25216713,3680.7,3680.2,2.80099688]
[1732961825484,0.25215855,3680.6,3680.3,2.71715]
[1732961825775,0.8028,3680.8,3680.3,2.71715]
[1732961825981,0.25215806,3680.7,3680.3,2.71715]
[1732961826485,0.25227981,3680.6,3680.4,0.03855304]
[1732961826640,0.8028,3680.8,3680.4,0.03855304]
[1732961826836,0.64523088,3680.7,3680.4,0.03855304]
[1732961827183,0.25225066,3680.6,3680.5,0.03853339]
[1732961827677,0.25225066,3680.6,3680.2,2.80094688]
[1732961827836,0.8028,3680.8,3680.3,2.71715]
[1732961828037,3.26699,3680.6,3680.4,0.03855304]
[1732961828251,3.95159517,3680.5,3680.2,0.08376688]
[1732961828451,4.32225015,3680.4,3680.3,0.03855741]
[1732961828667,0.55,3679.9,3678.7,1.08742]
[1732961828867,2.71801,3679.2,3679.0,0.03503498]
[1732961829078,1.48499948,3679.1,3679.0,0.03503498]
[1732961829278,1.48499948,3679.1,3678.7,1.08742]
[1732961829279,1.05516015,3679.1,3678.7,3.80576]
[1732961829493,3.52065,3679.4,3679.0,0.03503498]
[1732961829641,3.64042033,3679.3,3679.0,0.03503498]
[1732961829977,0.55,3679.1,3679.0,0.03503498]
[1732961830183,0.25225297,3679.1,3679.0,0.03503498]
[1732961830541,0.25225297,3679.1,3679.0,2.75315498]
[1732961830841,0.25225297,3679.1,3679.0,0.03503498]
[1732961831483,0.25225297,3679.1,3679.0,3.02865349]
[1732961831656,0.7708,3679.8,3679.0,2.37734356]
[1732961831850,0.7708,3679.8,3679.5,2.71769]
[1732961832271,0.7708,3679.8,3679.6,0.03487647]
[1732961832471,0.03397211,3679.7,3679.5,2.71769]
[1732961832741,0.25200502,3679.6,3679.1,2.71805]
[1732961832938,0.2859783,3679.5,3679.1,2.71805]
[1732961833145,0.03397497,3679.5,3679.0,2.71812]
[1732961833341,0.7708,3679.6,3679.0,2.71812]
[1732961833541,0.7708,3679.6,3678.9,2.71997011]
[1732961833542,1.20513592,3679.5,3679.1,2.71798]
[1732961833787,0.55,3679.3,3678.9,2.71997011]
[1732961833961,0.25198655,3679.2,3679.0,2.71812]
[1732961834143,0.55,3679.5,3679.1,2.71805]
[1732961834484,0.25190401,3679.4,3679.1,2.71805]
[1732961834785,0.7708,3679.1,3678.9,0.00177011]
[1732961835079,0.80190401,3679.0,3678.9,0.00177011]
[1732961836178,3.55400549,3679.0,3678.9,0.03568875]
[1732961836486,4.49816939,3679.0,3678.9,0.00177011]
[1732961836784,5.86286227,3679.0,3678.9,0.00177011]
[1732961837289,2.33918302,3679.0,3678.9,0.00177011]
[1732961837853,1.61755408,3679.0,3678.9,0.00177011]
[1732961838222,1.61755408,3679.0,3678.9,0.036016]
[1732961838366,1.61755408,3679.0,3678.9,0.00177011]
[1732961838703,4.33567408,3679.0,3678.9,0.00177011]
[1732961839356,4.73836802,3679.0,3678.9,0.00177011]
[1732961839553,5.91865574,3679.0,3678.9,0.00177011]
[1732961840031,5.91850324,3679.0,3678.9,0.00177011]
[1732961840291,5.50425476,3679.0,3678.9,0.00177011]
[1732961840447,5.91850415,3679.0,3678.9,0.00177011]
[1732961840895,5.50425476,3679.0,3678.9,0.00177011]
[1732961841060,2.3834908,3679.0,3678.9,0.00177011]
[1732961841259,2.78621839,3679.0,3678.9,0.00177011]
[1732961842062,2.02018006,3679.0,3678.9,0.03632119]
[1732961842653,2.02018006,3679.0,3674.5,1.31588331]
[1732961842654,0.8158,3678.4,3677.1,2.71947]
[1732961842962,0.55,3677.9,3677.1,2.71947]
[1732961843159,0.55,3677.9,3677.3,2.06681007]
[1732961843499,0.55,3678.3,3677.3,2.54543608]
[1732961843684,0.55,3678.1,3677.3,2.06681007]
[1732961844167,3.26865,3678.3,3677.4,2.71931]
[1732961844351,0.55,3678.0,3677.4,2.71931]
[1732961844914,0.55,3678.1,3677.5,2.71923]
[1732961845235,0.55,3677.9,3677.5,2.71923]
[1732961845391,0.55,3677.9,3677.6,2.71909]
[1732961845593,0.8158,3677.8,3677.4,2.71931]
[1732961845827,0.8158,3677.8,3677.4,2.71924]
[1732961845993,0.8158,3677.8,3676.9,2.06681007]
[1732961846330,1.3658,3678.2,3677.7,2.71908]
[1732961846512,0.25157929,3678.1,3677.5,2.71923]
[1732961846720,1.3658,3678.2,3677.6,2.7191]
[1732961846935,0.25157493,3678.1,3677.7,2.71907]
[1732961847149,1.3658,3678.2,3677.4,2.7193]
[1732961847150,0.25157468,3678.0,3677.5,2.71922]
[1732961847289,0.03398865,3678.0,3677.5,2.71922]
[1732961847490,1.3658,3678.2,3677.5,5.20837805]
[1732961847695,0.25158818,3678.1,3677.8,2.71899]
[1732961847924,1.3658,3678.2,3677.8,2.71899]
[1732961848108,0.25157758,3678.1,3677.9,2.71887]
[1732961848304,0.25157758,3678.1,3677.5,2.48914805]
[1732961848305,0.03398684,3678.1,3677.8,2.71897]
[1732961848630,0.8158,3678.8,3678.4,2.71852]
[1732961848938,0.25167219,3678.7,3678.5,5.43688]
[1732961849239,0.8158,3678.8,3678.5,2.71848]
[1732961849536,0.25180498,3678.7,3678.3,2.71863]
[1732961849739,0.25180498,3678.6,3677.9,2.06681007]
[1732961849910,0.8158,3678.8,3678.4,2.71857]
[1732961849911,0.25180498,3678.5,3678.4,2.71857]
[1732961850233,0.8158,3678.8,3678.5,2.71849]
[1732961850414,0.25186537,3678.7,3678.5,2.71849]
[1732961850621,0.25186537,3678.7,3678.6,0.0324583]
[1732961850839,0.8158,3678.8,3678.6,0.0324583]
[1732961851631,0.8202,3679.1,3678.6,0.0324583]
[1732961851931,0.80199681,3679.0,3678.8,2.71826]
[1732961852234,0.8202,3679.1,3679.0,2.71812]
[1732961852401,0.25214528,3679.1,3679.0,2.71812]
[1732961852610,0.25214528,3679.1,3679.0,2.75049963]
[1732961853241,0.8202,3679.7,3679.1,2.71801]
[1732961853439,1.29511398,3679.6,3679.3,2.71785]
[1732961853740,0.25233415,3679.5,3679.4,2.75014788]
[1732961854238,9.8002,3680.1,3679.7,2.71758]
[1732961854439,0.65647109,3680.0,3679.7,2.71758]
[1732961854595,0.25248888,3679.9,3679.7,2.71758]
[1732961854797,0.25248888,3679.8,3679.7,2.71758]
[1732961855204,2.43805988,3680.4,3680.0,2.71739]
[1732961855402,1.88322777,3680.3,3680.0,2.71739]
[1732961855633,0.2526059,3680.2,3680.0,2.71739]
[1732961855838,0.2526059,3680.2,3679.6,2.71766]
[1732961855839,0.2526059,3680.1,3679.6,2.71766]
[1732961856044,0.2526059,3680.0,3679.7,2.7176]
[1732961856198,0.25276011,3679.9,3679.6,2.71767]
[1732961856393,0.25276011,3679.9,3679.8,0.03203438]
[1732961856394,1.35187057,3679.9,3679.8,0.03203438]
[1732961856597,2.00899204,3679.9,3679.7,0.03205404]
[1732961856939,2.00899204,3679.9,3679.1,2.71805]
[1732961856940,0.55,3679.7,3679.1,2.71805]
[1732961857158,0.55,3679.5,3678.9,2.71816]
[1732961857314,0.28671987,3679.4,3678.9,2.71816]
[1732961857503,0.7679,3679.3,3678.9,2.71816]
[1732961857706,0.7679,3679.3,3678.3,2.71858]
[1732961857707,0.03397659,3679.2,3679.0,2.71806]
[1732961858743,0.7679,3679.3,3679.1,2.71805]
[1732961859125,0.7679,3679.3,3679.0,2.71806]
[1732961859640,0.03397645,3679.2,3679.0,2.71806]
[1732961859839,0.03397645,3679.2,3678.6,2.71842]
[1732961860048,0.03397645,3679.2,3678.2,2.06681007]
[1732961860049,0.03397645,3679.2,3678.9,2.71819]
[1732961860246,0.03397645,3679.2,3679.1,2.71805]
[1732961860430,0.03397645,3679.2,3678.9,2.71819]
[1732961860431,0.7679,3679.6,3679.2,2.71798]
[1732961860611,0.55,3679.5,3679.2,2.71798]
[1732961861647,0.7679,3679.6,3679.3,2.71789]
[1732961861831,0.4726382,3679.8,3679.5,2.71776]
[1732961862141,0.55,3679.8,3679.6,0.03217526]
[1732961862342,0.55,3679.8,3679.5,2.71776]
[1732961862644,0.55,3679.8,3679.3,2.71789]
[1732961862810,0.55,3679.8,3679.1,2.71805]
[1732961863005,0.55,3679.8,3679.4,2.71781]
[1732961863210,0.03397399,3679.7,3679.2,0.03225391]
[1732961863447,0.03397399,3679.7,3679.5,0.03219492]
[1732961863628,0.03397399,3679.7,3679.4,2.71781]
[1732961864212,0.55,3679.8,3679.4,2.71781]
[1732961864547,0.7679,3679.9,3679.4,2.71777]
[1732961864749,0.7679,3679.9,3679.5,2.74977779]
[1732961865338,0.03397249,3679.8,3679.5,2.74977779]
[1732961865746,8.98,3680.2,3679.9,2.7174]
[1732961865910,8.98,3680.2,3680.0,2.74925702]
[1732961866105,8.98,3680.2,3680.0,0.03190702]
[1732961866338,10.226495,3680.2,3679.8,2.71753]
[1732961866542,10.226495,3680.2,3679.9,0.03192668]
[1732961866726,10.226495,3680.2,3679.9,2.74936668]
[1732961867139,10.226495,3680.2,3679.9,0.03192668]
[1732961867653,10.226495,3680.2,3679.9,2.74938668]
[1732961868230,10.226495,3680.2,3679.9,0.03192668]
[1732961868744,10.226495,3680.2,3679.9,2.71745]
[1732961869064,8.98,3680.2,3680.1,2.71731]
[1732961869364,9.7479,3680.2,3680.1,0.03188737]
[1732961869861,9.7479,3680.2,3679.6,2.71767]
[1732961870063,1.00875807,3680.1,3679.9,2.71739]
[1732961870265,0.03396807,3680.1,3679.9,2.71739]
[1732961870565,0.03396807,3680.1,3680.0,2.74929702]
[1732961870870,0.7679,3680.2,3680.0,2.74929702]
[1732961870871,0.7679,3680.2,3680.0,0.03190702]
[1732961871050,0.7679,3680.2,3680.0,2.74929702]
[1732961871362,0.7679,3680.2,3680.1,0.03188737]
[1732961871768,1.66979677,3680.2,3680.1,0.03188737]
[1732961872066,0.55,3679.9,3679.4,2.71782]
[1732961872238,0.7662,3679.7,3679.1,2.71805]
[1732961872449,0.7662,3679.7,3679.3,2.71788]
[1732961872640,0.03397384,3679.6,3679.1,2.71799]
[1732961873151,0.7662,3679.7,3679.3,2.71788]
[1732961873333,0.7662,3679.7,3679.1,2.71805]
[1732961873523,0.03397386,3679.6,3679.2,2.71796]
[1732961874365,0.03397384,3679.6,3679.0,2.71808]
[1732961874835,0.55,3679.5,3678.5,3.0]
[1732961875039,0.55,3679.5,3677.9,0.50656848]
[1732961875040,0.7662,3679.3,3678.9,2.71819]
[1732961875733,0.7662,3679.3,3679.0,2.71811]
[1732961875943,0.7662,3679.3,3679.0,2.71812]
[1732961876155,0.7662,3679.3,3678.7,2.71829]
[1732961876352,0.03397613,3679.2,3678.8,2.71823]
[1732961877243,0.03397613,3679.2,3678.9,2.71819]
[1732961877742,0.03397613,3679.2,3678.7,2.71829]
[1732961878129,0.03397613,3679.2,3678.6,2.71838]
[1732961878130,2.75195613,3679.2,3678.6,2.71838]
[1732961878325,0.39249487,3679.1,3678.6,2.71838]
[1732961878631,0.03397899,3679.0,3678.6,2.71838]
[1732961878848,0.03397898,3679.2,3678.8,2.71821]
[1732961879059,0.03397898,3679.2,3678.6,2.71838]
[1732961879371,0.55,3679.2,3678.7,2.71834]
[1732961879874,2.71821,3678.9,3677.8,0.27976471]
[1732961880071,0.55,3679.0,3678.4,2.7185]
[1732961880365,0.7662,3679.1,3678.8,2.71821]
[1732961880570,0.7662,3679.1,3678.0,2.06681007]
[1732961880571,0.03397749,3679.0,3678.4,2.71855]
[1732961880778,0.03398035,3678.9,3678.4,2.71855]
[1732961880929,3.10401239,3678.9,3678.2,2.71872]
[1732961881131,2.71829,3678.8,3678.2,2.71872]
[1732961881327,0.7662,3678.6,3678.2,2.71872]
[1732961881673,0.7662,3678.6,3678.3,2.71858]
[1732961882160,0.7662,3678.6,3678.0,2.06681007]
[1732961882161,2.71866,3678.3,3677.5,2.71917]
[1732961882357,8.98,3678.8,3676.8,0.28381907]
[1732961882358,0.55,3678.1,3676.8,0.28381907]
[1732961882530,0.7662,3678.2,3677.9,2.71894]
[1732961882731,0.7662,3678.2,3676.6,0.2709]
[1732961882732,0.7662,3679.4,3678.2,2.71872]
[1732961882931,2.71798,3679.2,3678.6,2.06681007]
[1732961883131,0.03397858,3679.1,3678.3,2.71863]
[1732961883340,4.00183644,3679.1,3678.3,2.71863]
[1732961883575,0.7662,3678.8,3677.8,2.06681007]
[1732961883777,0.7662,3678.8,3678.2,2.71866]
[1732961883976,0.7662,3678.8,3678.0,2.7188]
[1732961883977,2.71837,3678.7,3678.0,2.7188]
[1732961884173,3.51846469,3678.8,3677.8,4.78581007]
[1732961884372,0.55,3678.5,3677.9,2.71891]
[1732961885379,0.80018512,3678.4,3677.6,2.71915]
[1732961885585,0.55,3678.3,3676.7,2.71976]
[1732961885812,0.55,3678.1,3676.7,2.06681007]
[1732961886072,0.55,3677.9,3677.3,2.71935]
[1732961886566,0.55,3677.9,3677.4,0.03075088]
[1732961886767,3.26894,3677.9,3677.4,0.03075088]
[1732961886969,0.7917,3677.5,3677.4,0.03075088]
[1732961887269,0.7917,3677.5,3676.9,2.71961]
[1732961887473,0.7917,3677.5,3677.4,0.03075425]
[1732961887683,0.7917,3677.5,3677.0,2.71957]
[1732961887833,0.7917,3677.5,3677.4,0.03075425]
[1732961888037,0.7917,3677.5,3676.8,2.06681007]
[1732961888379,0.7917,3677.5,3677.1,2.7195]
[1732961888866,0.7917,3677.5,3677.2,0.03091688]
[1732961889779,0.7917,3677.5,3677.4,2.71931]
[1732961890087,1.3026,3677.9,3677.2,4.81711695]
[1732961890236,1.3026,3677.9,3677.4,2.75011556]
[1732961890435,1.3026,3677.9,3677.4,2.71926]
[1732961890636,1.3026,3677.9,3677.5,0.03083588]
[1732961891074,1.704742,3677.9,3677.2,2.71939]
[1732961891374,1.704742,3677.9,3677.3,2.71938]
[1732961891678,1.704742,3677.9,3677.3,2.75024005]
[1732961891857,1.704742,3677.9,3677.4,2.7193]
[1732961892235,1.704742,3677.9,3677.5,0.03082068]
[1732961892438,1.3026,3677.9,3677.5,2.75005068]
[1732961892684,1.3026,3677.9,3677.2,2.71945]
[1732961892685,1.3026,3677.9,3677.3,2.71932]
[1732961892842,1.3026,3677.9,3677.6,0.030801]
[1732961893041,1.3026,3677.9,3677.3,2.71932]
[1732961893239,2.71887,3678.0,3676.0,0.30335404]
[1732961893240,0.7526,3677.4,3676.0,0.30335404]
[1732961893440,0.7526,3677.1,3676.0,0.30335404]
[1732961893664,0.7526,3677.1,3676.7,2.66976]
[1732961894176,3.47216,3677.1,3676.2,0.2204602]
[1732961894334,0.55,3677.0,3676.4,2.71998]
[1732961894536,0.7526,3677.1,3676.4,2.71998]
[1732961894537,0.55,3676.7,3676.4,2.71998]
[1732961894745,0.55,3676.7,3676.5,0.005]
[1732961894984,0.55,3676.9,3676.5,0.005]
[1732961895156,0.952221,3676.9,3676.5,0.005]
[1732961896244,0.55,3676.9,3676.5,0.005]
[1732961896486,0.55,3677.0,3676.5,2.72497]
[1732961896779,0.55,3677.0,3676.5,0.005]
[1732961896985,0.55,3677.0,3676.5,2.72495]
[1732961897172,0.7526,3677.1,3676.6,2.71987]
[1732961897373,0.7526,3677.1,3676.7,2.7198]
[1732961897687,0.7526,3677.1,3676.8,2.71973]
[1732961898253,0.7526,3677.1,3676.5,0.005]
[1732961898493,0.7526,3677.1,3676.7,2.71978]
[1732961899875,0.03399798,3677.0,3676.5,2.72497]
[1732961900061,0.7526,3676.9,3676.6,2.71988]
[1732961900392,0.7526,3676.9,3676.7,2.7198]
[1732961900752,0.7526,3676.9,3676.8,0.02715149]
[1732961901104,0.7526,3676.9,3676.5,2.72497]
[1732961901592,0.7526,3676.9,3676.6,0.02719087]
[1732961902365,0.03400049,3676.8,3676.6,0.02719087]
[1732961902560,1.099815,3676.9,3676.6,0.02719087]
[1732961902798,4.02243,3676.7,3676.6,0.02719087]
[1732961903007,4.02098854,3676.7,3676.6,0.02719087]
[1732961903291,0.55,3676.6,3676.5,0.005]
[1732961903651,0.7526,3676.7,3676.5,0.005]
[1732961904196,0.7526,3676.7,3676.6,0.02553716]
[1732961905280,3.47243,3676.7,3676.6,0.02553716]
[1732961905803,0.7526,3676.7,3676.5,0.005]
[1732961906203,0.7526,3676.7,3676.6,0.0255263]
[1732961909068,0.7526,3677.0,3676.6,0.0255263]
[1732961909265,0.7526,3677.0,3676.6,2.7454163]
[1732961909499,8.98,3677.1,3676.6,2.7454163]
[1732961909500,8.98,3677.1,3676.8,2.71971]
[1732961909814,8.98,3677.1,3676.9,0.02639628]
[1732961910168,8.98,3677.1,3676.5,2.72493]
[1732961910365,8.98,3677.1,3676.6,0.03081037]
[1732961910812,8.98,3677.1,3676.6,2.75070037]
[1732961911372,11.69959,3677.1,3676.6,0.03081037]
[1732961911690,13.216741,3677.1,3676.6,0.03081037]
[1732961911877,2.71962,3677.0,3676.6,0.03081037]
[1732961912268,2.71947,3677.2,3676.6,0.03081037]
[1732961912474,2.97218951,3677.1,3676.6,0.03081037]
[1732961912675,2.71962,3677.0,3676.6,0.03081037]
[1732961912914,4.216521,3677.0,3676.6,0.03081037]
[1732961913205,2.71971,3676.9,3676.6,0.03081037]
[1732961913442,1.03728632,3676.8,3676.6,0.03081037]
[1732961913707,0.7845,3676.8,3676.6,0.03081037]
[1732961913895,2.97260915,3676.7,3676.6,0.03081037]
[1732961914098,3.68740071,3676.7,3676.6,0.03081037]
[1732961914484,4.09199629,3676.7,3676.6,0.03081037]
[1732961914810,2.7199,3676.6,3676.5,0.005]
[1732961915123,12.53668254,3676.6,3676.5,0.005]
[1732961915302,12.90719716,3676.6,3676.5,0.03134504]
[1732961915610,14.40409816,3676.6,3676.5,0.005]
[1732961915808,13.85409816,3676.6,3676.5,0.005]
[1732961916611,13.44977442,3676.6,3676.5,0.005]
[1732961917169,13.99977442,3676.6,3676.5,0.005]
[1732961917497,14.4045319,3676.6,3676.5,0.005]
[1732961920141,13.746801,3676.6,3676.5,0.005]
[1732961920313,14.15153275,3676.6,3676.5,0.005]
[1732961920522,14.9794574,3676.6,3676.5,0.005]
[1732961921042,13.85459661,3676.6,3676.5,0.005]
[1732961921242,0.65779561,3676.6,3676.5,0.005]
[1732961921538,0.65779561,3676.6,3676.5,0.04093858]
[1732961921745,0.65805534,3676.6,3676.5,0.04093858]
[1732961922753,0.65805534,3676.6,3676.5,2.76090858]
[1732961922927,0.25309821,3676.6,3676.5,2.76090858]
[1732961923105,9.40159557,3676.9,3676.8,2.71975]
[1732961923494,0.67492815,3676.9,3676.8,0.03978549]
[1732961923804,0.67492815,3676.9,3676.5,3.50179989]
[1732961924004,0.42159557,3676.9,3676.8,2.82781062]
[1732961924236,0.67494611,3676.9,3676.8,2.78315]
[1732961924409,0.42159557,3676.9,3676.8,2.82781062]
[1732961924599,0.42159557,3676.9,3676.8,3.29172973]
[1732961924803,0.42159557,3676.9,3676.8,5.3585398]
[1732961927439,0.42159557,3676.9,3676.8,4.89462069]
[1732961928447,0.42159557,3676.9,3676.8,2.17487069]
[1732961929664,0.42159557,3676.9,3676.8,0.04466062]
[1732961929831,0.42159557,3676.9,3676.6,2.71983]
[1732961930156,0.42159557,3676.9,3676.5,0.005]
[1732961930157,0.8244,3676.8,3676.5,0.005]
[1732961930362,2.7199,3676.6,3676.5,0.005]
[1732961930661,2.7199,3676.6,3676.5,0.05588179]
[1732961930876,2.7199,3676.6,3676.5,0.005]
[1732961931784,2.7199,3676.6,3676.5,0.04955952]
[1732961931938,0.39656956,3676.7,3676.5,0.04955952]
[1732961932139,0.43623751,3676.6,3676.5,0.04955952]
[1732961932437,2.75390268,3676.6,3676.5,0.04955952]
[1732961932750,2.7199,3676.6,3676.5,0.04955952]
[1732961934240,2.7199,3676.6,3676.5,0.005]
[1732961935083,2.9729707,3676.6,3676.5,0.005]
[1732961935286,2.7199,3676.6,3676.5,0.005]
[1732961935874,2.7199,3676.6,3676.5,0.04959748]
[1732961936039,3.346305,3676.6,3676.5,0.005]
[1732961936239,3.346305,3676.6,3676.5,0.04959748]
[1732961936439,3.346305,3676.6,3676.5,0.005]
[1732961936681,13.150705,3676.6,3676.5,0.04959748]
[1732961936876,4.09452,3676.3,3676.2,0.1520602]
[1732961937061,4.09452,3676.3,3674.1,3.00479362]
[1732961937062,4.09519,3675.4,3674.1,0.272]
[1732961937265,4.34822604,3675.4,3674.5,2.06681007]
[1732961937795,4.34822604,3675.4,3674.6,2.72136]
[1732961937955,4.09519,3675.4,3674.6,2.72136]
[1732961938157,4.09519,3675.4,3674.5,2.06681007]
[1732961938586,4.09519,3675.4,3674.4,2.72147]
[1732961939115,4.09519,3675.4,3674.5,2.98652]
[1732961939313,4.09519,3675.4,3674.5,0.2651]
[1732961939485,4.09519,3675.4,3674.5,2.98655]
[1732961939685,3.54519,3675.4,3674.5,2.98655]
[1732961940215,3.54519,3675.4,3674.7,2.72129]
[1732961940389,3.54519,3675.4,3674.5,0.2651]
[1732961940390,3.54519,3675.4,3674.5,2.98653]
[1732961940574,3.54519,3675.4,3674.5,0.2651]
[1732961940770,3.54519,3675.4,3674.4,2.72152]
[1732961941173,3.54519,3675.4,3674.5,2.72144]
[1732961941601,3.54519,3675.4,3674.3,2.7216]
[1732961941806,4.12920735,3675.4,3674.1,2.72174]
[1732961942019,4.12920735,3675.4,3674.0,0.2651]
[1732961942020,5.40256223,3675.4,3674.0,2.72177]
[1732961942176,14.38256223,3675.4,3674.0,2.72177]
[1732961942386,14.34854488,3675.4,3674.0,2.72177]
[1732961942586,14.34854488,3675.4,3673.9,0.00188402]
[1732961942910,14.34854488,3675.4,3674.1,2.72172]
[1732961943222,13.79854488,3675.4,3674.2,2.72167]
[1732961943432,14.19090108,3675.4,3674.2,2.72167]
[1732961943601,13.93872482,3675.4,3674.2,2.72167]
[1732961943786,14.19067682,3675.4,3674.2,2.72164]
[1732961943986,14.19067149,3675.4,3674.6,2.72132]
[1732961944343,13.93872482,3675.4,3674.6,2.72132]
[1732961944704,13.701595,3675.4,3674.4,0.2651]
[1732961944900,14.09636862,3675.4,3674.2,2.72162]
[1732961945291,14.48872482,3675.4,3674.0,2.72181]
[1732961945789,14.48872482,3675.4,3673.9,0.26698402]
[1732961945790,14.48872482,3675.4,3674.2,2.72162]
[1732961946221,13.5439512,3675.4,3674.3,2.72159]
[1732961946486,14.48872482,3675.4,3674.3,2.72159]